bitfinex/quotes_ETHUSD_20260313
["timestamp","ask_amount","ask_price","bid_price","bid_amount"]
[1773409181838,1.14510809,2183.2,2182.1,6.49702811]
[1773409182038,1.14510809,2183.2,2182.3,6.4512007]
[1773409182228,1.14510809,2183.2,2182.4,6.49702181]
[1773409183139,0.002,2183.3,2182.4,7.59668572]
[1773409183845,0.002,2183.5,2182.4,7.64250683]
[1773409184040,0.002,2183.5,2182.4,6.4512007]
[1773409184223,6.12285625,2183.5,2182.1,1.14568534]
[1773409184546,6.12285625,2183.5,2182.0,6.4522007]
[1773409184547,6.12085625,2183.3,2182.0,6.4522007]
[1773409184849,6.12085625,2183.3,2182.1,1.37]
[1773409185256,6.12085625,2182.7,2182.1,1.37]
[1773409185459,7.81705965,2183.1,2182.1,1.37]
[1773409185618,6.31679434,2183.0,2182.1,1.37]
[1773409186018,6.31679434,2183.0,2182.0,0.001]
[1773409187350,7.46205981,2182.9,2182.0,0.001]
[1773409188923,7.46205981,2182.9,2181.8,1.371]
[1773409189348,7.46205981,2182.9,2181.8,0.001]
[1773409190954,5.88228795,2182.3,2180.8,6.01418446]
[1773409191134,5.88228795,2182.3,2180.9,2.5172823]
[1773409191328,7.02792079,2182.2,2180.9,1.371]
[1773409191643,3.32448464,2182.2,2180.9,1.371]
[1773409191844,1.14563284,2182.2,2181.1,6.06103288]
[1773409193166,1.14563284,2182.2,2181.1,6.01518446]
[1773409193339,1.14552785,2182.4,2181.3,6.01418446]
[1773409194270,1.14552785,2182.4,2181.3,6.01518446]
[1773409194572,7.0278158,2182.4,2181.3,0.001]
[1773409195632,7.0278158,2182.4,2181.1,0.001]
[1773409195838,5.88228795,2182.0,2181.0,1.14724683]
[1773409196136,5.88228795,2182.0,2181.1,0.04584842]
[1773409196361,5.88228795,2182.3,2181.1,0.04584842]
[1773409196566,5.88228795,2182.3,2181.1,6.06003288]
[1773409197252,5.88228795,2182.3,2181.1,6.01418446]
[1773409197565,5.88228795,2182.1,2181.1,1.369]
[1773409198072,5.88228795,2182.1,2181.2,0.04584632]
[1773409198770,1.14563284,2182.2,2181.2,0.04584632]
[1773409199866,10.46481934,2182.4,2181.3,1.14610553]
[1773409200165,10.46481934,2182.4,2181.4,0.04584211]
[1773409201067,10.46481934,2182.4,2181.3,7.16028999]
[1773409201289,5.88228795,2182.3,2181.3,1.369]
[1773409201570,5.88228795,2181.4,2180.8,0.001]
[1773409201739,5.88228795,2181.4,2179.9,6.01418446]
[1773409201939,5.88228795,2181.1,2179.9,7.38318446]
[1773409202264,5.88228795,2181.1,2179.8,1.37]
[1773409202765,5.88228795,2181.1,2179.8,0.001]
[1773409202965,5.88228795,2180.8,2179.8,0.001]
[1773409203570,5.88228795,2180.5,2179.8,0.001]
[1773409203874,7.02886655,2180.4,2179.8,0.001]
[1773409204182,1.1465786,2180.4,2179.5,0.04688208]
[1773409204467,4.58631443,2180.5,2179.5,6.01518446]
[1773409204468,1.14655506,2180.5,2179.5,6.01518446]
[1773409204673,7.02884301,2180.5,2179.5,0.001]
[1773409205047,1.1463683,2180.8,2179.5,6.01518446]
[1773409205252,5.88228795,2180.7,2179.6,1.369]
[1773409205655,1.1463683,2180.8,2179.6,7.38318446]
[1773409205968,1.14626318,2181.0,2179.9,1.14684159]
[1773409206146,1.14626318,2181.0,2179.8,10.60155085]
[1773409206147,7.02855113,2181.0,2179.8,1.14685362]
[1773409206751,7.02855113,2181.0,2179.9,0.04587366]
[1773409207158,7.02855113,2181.0,2179.9,6.06005812]
[1773409207477,4.58445287,2181.3,2179.9,6.06005812]
[1773409207657,1.6962034,2182.4,2180.3,6.01418446]
[1773409207855,1.14568534,2182.1,2180.6,1.14647344]
[1773409208059,1.14568534,2182.1,2180.7,7.42804129]
[1773409209355,1.14568534,2182.1,2180.9,6.01418446]
[1773409210062,5.88228795,2182.4,2181.0,2.51426318]
[1773409210268,5.88228795,2182.3,2180.9,7.16046963]
[1773409210554,5.88228795,2182.3,2181.0,7.38218446]
[1773409211967,5.88428795,2182.7,2181.0,7.38218446]
[1773409212280,1.6962034,2182.5,2181.2,6.01418446]
[1773409212580,7.02771084,2182.6,2181.3,7.38218446]
[1773409212877,1.14542289,2182.6,2181.3,7.38218446]
[1773409213577,1.1473825,2182.7,2181.3,7.38218446]
[1773409213786,1.1473825,2182.7,2181.3,6.01418446]
[1773409213951,1.1473825,2182.7,2181.5,6.01418446]
[1773409214283,0.002,2182.7,2181.7,6.01418446]
[1773409215853,1.14715931,2183.2,2181.8,6.01418446]
[1773409216177,1.14715931,2183.2,2182.0,6.01418446]
[1773409216178,1.14711164,2183.2,2182.0,6.01418446]
[1773409216380,0.002,2183.2,2182.2,6.01418446]
[1773409216689,0.002,2183.2,2182.4,6.01418446]
[1773409217961,0.002,2183.5,2182.4,6.01418446]
[1773409218485,0.002,2183.5,2182.6,6.01418446]
[1773409219077,0.002,2183.5,2182.7,1.366]
[1773409219275,0.002,2183.5,2182.6,1.366]
[1773409219597,5.88428795,2183.5,2182.5,1.366]
[1773409219784,5.88428795,2183.5,2182.2,7.15978154]
[1773409220088,5.88428795,2183.5,2182.4,1.366]
[1773409220285,1.1450032,2183.4,2182.5,1.14547537]
[1773409220786,1.1450032,2183.4,2182.4,1.14548576]
[1773409220986,7.44854724,2183.4,2182.2,7.15981494]
[1773409221293,7.44854724,2183.4,2181.8,6.54408729]
[1773409221294,6.30354404,2183.1,2181.8,6.54408729]
[1773409221499,6.30354404,2183.1,2181.9,1.366]
[1773409221661,6.30354404,2183.1,2181.8,0.22813523]
[1773409221857,6.30354404,2183.1,2181.8,1.41183371]
[1773409222055,6.30354404,2183.1,2181.7,1.366]
[1773409222260,7.44875704,2183.0,2181.7,2.51189428]
[1773409222483,7.44875704,2183.0,2181.6,0.04583791]
[1773409222484,6.30354404,2182.8,2181.6,0.04583791]
[1773409223189,6.30354404,2182.8,2181.1,0.065536]
[1773409223190,6.30354404,2182.5,2181.4,1.366]
[1773409224267,1.14552785,2182.4,2181.4,1.366]
[1773409224469,7.44907189,2182.4,2181.4,1.366]
[1773409224863,7.44907189,2182.4,2181.3,1.366]
[1773409225568,7.44907189,2182.4,2181.4,1.366]
[1773409226212,7.44907189,2182.4,2181.1,7.46215234]
[1773409226489,7.44907189,2182.4,2181.4,1.366]
[1773409226691,7.44907189,2182.4,2181.3,1.366]
[1773409226892,7.44907189,2182.4,2181.1,6.31595206]
[1773409227188,7.44907189,2182.4,2181.3,1.366]
[1773409227392,6.30354404,2182.1,2181.1,1.366]
[1773409227989,1.14552785,2182.4,2181.2,6.36179838]
[1773409228188,7.44907189,2182.4,2181.2,6.36179838]
[1773409228486,7.44907189,2182.4,2181.1,1.366]
[1773409228487,7.44907189,2182.4,2181.1,2.51221062]
[1773409228788,7.44907189,2182.4,2180.9,6.31595206]
[1773409228789,1.69520342,2182.1,2180.9,6.31595206]
[1773409228989,6.30354404,2181.6,2180.3,8.82856226]
[1773409229189,6.30354404,2181.6,2180.4,6.31595206]
[1773409229386,6.30354404,2181.6,2180.5,0.04586104]
[1773409229564,7.44891445,2182.7,2180.9,6.38148806]
[1773409229765,6.30354404,2182.4,2180.9,6.38148806]
[1773409230177,6.30354404,2182.0,2180.7,1.366]
[1773409230376,6.30354404,2181.8,2180.7,2.51241575]
[1773409230786,6.30354404,2181.8,2180.7,1.14641575]
[1773409231167,6.30354404,2181.8,2180.6,1.365]
[1773409231373,7.4493344,2181.9,2180.6,7.68095206]
[1773409231893,4.58265507,2182.2,2180.8,6.31595206]
[1773409232092,4.58265507,2182.2,2181.0,6.31595206]
[1773409232266,4.58265507,2182.2,2181.1,6.36180048]
[1773409232668,10.88619911,2182.2,2180.9,4.58521244]
[1773409232868,10.88619911,2182.2,2180.9,7.4622678]
[1773409233068,6.30354404,2182.1,2180.9,7.4622678]
[1773409233483,6.30354404,2182.1,2180.9,6.31595206]
[1773409233723,6.30354404,2182.1,2181.1,0.001]
[1773409234498,1.69520342,2181.4,2180.6,0.001]
[1773409234697,1.14610553,2181.3,2180.6,0.001]
[1773409235395,7.44964957,2181.3,2180.1,1.14773147]
[1773409235598,1.14610553,2181.3,2180.2,6.31595206]
[1773409235901,6.76922981,2181.7,2180.1,1.14773147]
[1773409235902,7.44932332,2182.0,2180.4,6.31595206]
[1773409236125,6.30354404,2181.8,2180.5,6.38148806]
[1773409236274,6.30354404,2181.8,2180.5,7.68095206]
[1773409236689,1.1458954,2181.7,2180.7,7.46237293]
[1773409236997,1.1458954,2181.7,2180.8,0.04585473]
[1773409238676,4.58358161,2181.8,2180.9,1.14631574]
[1773409238881,7.44922938,2182.1,2180.9,1.14631574]
[1773409240104,1.69520342,2181.9,2180.7,7.4623683]
[1773409240409,6.30354404,2181.8,2180.6,1.19229793]
[1773409240809,1.1458954,2181.7,2180.6,1.19229793]
[1773409241015,2.18480768,2182.2,2180.6,1.19229793]
[1773409241016,2.18480768,2182.5,2180.8,6.31595206]
[1773409241310,4.09651441,2182.9,2180.6,1.19229793]
[1773409241311,7.4488364,2182.9,2181.2,6.31595206]
[1773409241602,7.4488364,2182.9,2181.4,6.31595206]
[1773409243290,1.69520342,2182.8,2181.5,7.46195251]
[1773409243607,6.30354404,2182.7,2181.5,7.46195251]
[1773409244211,1.14529236,2182.9,2181.5,7.46195251]
[1773409244611,7.99945359,2182.6,2181.5,1.14600045]
[1773409245386,7.44901941,2182.5,2181.1,7.46216268]
[1773409245604,6.30354404,2182.1,2181.0,2.51025611]
[1773409245806,6.30354404,2182.1,2181.1,0.001]
[1773409247524,1.14573785,2182.0,2181.1,0.001]
[1773409248243,2.009,2182.4,2181.1,6.11149836]
[1773409248244,1.14556756,2182.4,2181.1,6.11149836]
[1773409248913,7.23335358,2182.4,2181.1,6.11149836]
[1773409249796,7.23335358,2182.4,2181.2,7.21080801]
[1773409250317,7.23335358,2182.4,2181.2,6.06464994]
[1773409250494,9.41816126,2182.4,2181.2,6.06464994]
[1773409251013,6.20810104,2182.3,2181.1,1.14717209]
[1773409251210,6.20810104,2182.3,2181.2,0.04584632]
[1773409251521,6.20810104,2182.3,2181.1,1.19302051]
[1773409251690,6.20810104,2182.1,2181.1,0.001]
[1773409252206,6.20810104,2182.1,2181.1,1.14720782]
[1773409252704,6.20810104,2182.1,2181.1,0.001]
[1773409252906,6.20810104,2182.1,2181.1,1.14720612]
[1773409253306,6.20810104,2182.1,2181.1,1.14720197]
[1773409253828,1.14573785,2182.0,2181.1,0.001]
[1773409256025,7.35383889,2182.0,2181.1,0.001]
[1773409256269,6.20810104,2181.9,2181.1,0.001]
[1773409256797,6.20810104,2181.8,2181.1,0.001]
[1773409258094,1.1458954,2181.7,2181.1,0.001]
[1773409258721,1.14579036,2181.9,2181.1,0.001]
[1773409260132,4.58308482,2182.0,2181.1,1.14721062]
[1773409260302,1.14567455,2182.2,2181.2,5.93971572]
[1773409260506,6.20810104,2182.1,2181.1,1.14721062]
[1773409260746,6.20810104,2182.1,2181.1,7.13277476]
[1773409261039,1.14764345,2182.2,2181.1,7.13277476]
[1773409261248,0.002,2182.2,2181.1,7.13277476]
[1773409261400,0.002,2182.2,2181.1,7.08692634]
[1773409261401,1.1476452,2182.2,2181.1,7.08692634]
[1773409261603,0.002,2182.2,2181.1,7.08692634]
[1773409261828,1.1476397,2182.2,2181.3,5.93971572]
[1773409262126,3.33220323,2182.7,2181.5,5.93971572]
[1773409262327,1.14739555,2182.7,2181.7,5.93971572]
[1773409262534,0.002,2182.7,2181.7,5.93971572]
[1773409262738,1.14737382,2182.7,2181.7,5.93971572]
[1773409262939,7.35547486,2182.7,2181.6,1.365]
[1773409263145,7.35547486,2182.7,2181.4,7.08576871]
[1773409263937,7.90401059,2182.4,2181.4,1.14605299]
[1773409264145,1.14558035,2182.3,2181.4,1.14605299]
[1773409264567,7.35368139,2182.3,2181.4,1.14605299]
[1773409264767,7.35368139,2182.3,2181.1,1.366]
[1773409264768,7.35368139,2182.3,2181.1,1.14716614]
[1773409264974,6.20810104,2182.0,2181.1,0.001]
[1773409265172,6.20810104,2181.6,2180.9,0.001]
[1773409265535,1.09937298,2181.8,2180.9,1.14731045]
[1773409265742,7.30747402,2181.8,2180.9,0.001]
[1773409266069,7.90401059,2181.7,2180.9,0.001]
[1773409266371,7.35404896,2181.6,2180.9,0.001]
[1773409266570,1.69590955,2181.3,2180.6,0.001]
[1773409266741,3.3307556,2181.6,2180.6,0.001]
[1773409267141,1.14594792,2181.6,2180.6,0.001]
[1773409267341,5.68316469,2181.8,2180.6,0.001]
[1773409267342,1.14584434,2181.8,2180.6,5.98657465]
[1773409267750,1.14573785,2182.0,2180.6,5.98657465]
[1773409268053,1.14573785,2182.0,2180.7,1.365]
[1773409268253,3.33038803,2182.4,2180.8,5.98557045]
[1773409268449,4.58243972,2182.3,2181.0,5.93971572]
[1773409268659,4.58243972,2182.3,2181.2,5.93971572]
[1773409270474,1.14549083,2182.5,2181.4,5.93971572]
[1773409270766,6.76670916,2182.6,2181.5,6.00525172]
[1773409270767,1.14542433,2182.6,2181.5,6.00525172]
[1773409271058,1.14542433,2182.6,2181.5,7.37025172]
[1773409271245,6.20810104,2182.5,2181.3,1.14610553]
[1773409271453,1.69590955,2182.3,2181.2,1.14612588]
[1773409271656,1.69590955,2182.3,2181.0,1.14623493]
[1773409271657,6.20810104,2182.2,2181.0,1.14623493]
[1773409271877,6.20810104,2182.2,2181.0,1.19208545]
[1773409272176,6.20810104,2182.2,2181.0,7.08595065]
[1773409272579,1.14568534,2182.1,2181.0,7.08595065]
[1773409272749,1.14568534,2182.1,2181.0,7.13180117]
[1773409273148,10.79084243,2182.2,2181.0,7.08595065]
[1773409273149,1.14565647,2182.2,2181.0,7.08595065]
[1773409273361,1.69590955,2182.1,2181.0,7.08595065]
[1773409273542,1.69590955,2182.1,2181.0,7.13180117]
[1773409274279,7.90401059,2182.1,2181.5,0.001]
[1773409274452,1.14573785,2182.0,2181.5,0.001]
[1773409275276,1.14573785,2182.0,2181.3,0.001]
[1773409275483,1.14573785,2182.0,2181.0,7.08596686]
[1773409275484,7.90401059,2181.9,2181.0,1.14723531]
[1773409275774,10.08881827,2181.9,2181.0,1.14726221]
[1773409276078,1.69590955,2181.9,2181.0,1.14726221]
[1773409276266,1.14573785,2182.0,2181.0,7.08697793]
[1773409277475,1.14572631,2182.1,2181.2,5.93971572]
[1773409277652,1.14572631,2182.1,2181.3,5.98555994]
[1773409277969,1.14572631,2182.1,2181.3,5.93971572]
[1773409278372,1.14572631,2182.1,2181.0,1.14726221]
[1773409278551,9.0497369,2182.1,2181.0,0.001]
[1773409278962,7.35382735,2182.1,2181.0,5.94071572]
[1773409279368,7.35382735,2182.1,2181.1,0.04584842]
[1773409279978,7.35382735,2182.1,2181.0,5.94071572]
[1773409280492,4.5826832,2182.2,2181.1,7.08592634]
[1773409280690,1.14563284,2182.2,2181.2,5.98556204]
[1773409280895,0.002,2182.3,2181.2,5.98556204]
[1773409281306,6.76832603,2182.7,2181.8,6.01054325]
[1773409281307,0.002,2182.7,2181.8,6.01054325]
[1773409281489,0.002,2182.7,2182.0,6.01054325]
[1773409282697,0.002,2182.7,2182.1,7.15622859]
[1773409283497,0.002,2182.7,2182.1,6.01054325]
[1773409284308,0.002,2182.7,2182.2,1.366]
[1773409284477,0.002,2182.7,2182.3,1.14558035]
[1773409284875,0.002,2182.7,2182.2,2.5115946]
[1773409285101,0.002,2182.7,2182.1,8.52220992]
[1773409286270,0.002,2182.7,2182.1,2.51168245]
[1773409286917,0.002,2182.7,2182.1,1.366]
[1773409287301,0.002,2182.7,2182.1,2.51167818]
[1773409287522,0.002,2182.7,2182.1,1.366]
[1773409287692,0.002,2182.7,2182.1,2.51165359]
[1773409287888,0.002,2182.7,2182.1,1.366]
[1773409288607,0.002,2182.5,2182.1,1.366]
[1773409289190,0.002,2182.5,2181.8,7.37754325]
[1773409289515,0.002,2182.5,2181.5,7.15650081]
[1773409289690,0.002,2182.5,2181.5,6.01054325]
[1773409290708,1.14747537,2182.5,2181.5,6.24097845]
[1773409290917,7.45393933,2182.5,2181.5,7.38697226]
[1773409291127,7.45393933,2182.5,2181.6,0.04583791]
[1773409291790,7.45393933,2182.5,2181.5,6.24097845]
[1773409292291,7.45393933,2182.5,2181.6,0.04583791]
[1773409292292,1.14747537,2182.5,2181.6,0.04583791]
[1773409292608,1.14747537,2182.5,2181.6,6.05638116]
[1773409292808,1.14747537,2182.5,2181.7,1.1458954]
[1773409293112,1.14747537,2182.5,2181.6,7.15645143]
[1773409293411,1.14747537,2182.5,2181.6,7.20228934]
[1773409293613,1.14747537,2182.5,2181.6,7.15645143]
[1773409294549,0.002,2182.5,2181.7,6.05637906]
[1773409294709,0.002,2182.7,2181.8,1.14584288]
[1773409294912,0.002,2182.7,2181.9,7.42537486]
[1773409295146,0.002,2182.7,2181.9,7.37954325]
[1773409295752,0.002,2182.7,2182.0,6.01054325]
[1773409296214,0.002,2182.7,2182.1,0.04582741]
[1773409296411,0.002,2182.7,2182.0,6.01054325]
[1773409296749,6.30846396,2182.7,2181.6,7.15648979]
[1773409296923,1.14542289,2182.6,2181.7,6.05637906]
[1773409298207,0.002,2182.8,2182.1,6.01054325]
[1773409298455,0.002,2182.8,2182.3,6.01054325]
[1773409298956,0.002,2182.8,2182.4,1.14552785]
[1773409299922,0.002,2182.8,2182.3,7.15612007]
[1773409300250,0.002,2182.8,2182.3,7.15612218]
[1773409300454,0.002,2182.8,2182.3,6.01054325]
[1773409300670,0.002,2182.8,2182.3,7.15612]
[1773409300956,0.002,2182.8,2182.1,7.15618473]
[1773409301247,0.002,2182.8,2182.2,7.38154325]
[1773409302367,0.002,2182.4,2182.2,7.38154325]
[1773409302666,0.002,2182.8,2182.2,7.38154325]
[1773409303163,0.002,2182.8,2181.8,0.001]
[1773409303164,6.30646396,2182.5,2181.8,0.001]
[1773409303371,0.002,2182.6,2181.8,0.001]
[1773409304279,0.002,2182.6,2181.8,0.04683371]
[1773409304487,0.002,2182.6,2181.8,1.19265948]
[1773409304642,0.002,2182.6,2181.8,0.04683371]
[1773409304841,0.002,2182.6,2181.9,6.01054325]
[1773409305037,0.002,2182.6,2181.8,0.001]
[1773409305791,6.30646396,2182.4,2181.8,0.001]
[1773409305987,6.30646396,2182.4,2181.5,0.001]
[1773409307148,7.40008531,2182.3,2181.5,0.001]
[1773409311462,1.69686976,2181.8,2181.3,0.001]
[1773409311798,6.17009984,2182.1,2181.3,0.001]
[1773409311799,6.17009984,2182.0,2181.3,0.001]
[1773409312401,7.31568019,2182.3,2181.3,0.001]
[1773409312895,7.31568019,2182.3,2181.3,6.35015596]
[1773409313086,7.31568019,2182.3,2181.4,0.04584211]
[1773409313300,1.14558035,2182.3,2181.4,6.39499807]
[1773409313594,8.35690752,2182.6,2181.5,7.49515641]
[1773409313595,4.58190686,2182.5,2181.5,7.49515641]
[1773409313798,4.58190686,2182.5,2181.7,6.34915596]
[1773409314011,1.14547537,2182.5,2181.8,0.04583371]
[1773409314600,1.14547537,2182.5,2181.8,6.39498967]
[1773409315802,0.002,2182.6,2181.8,7.49496528]
[1773409316813,0.002,2182.1,2181.9,6.34915596]
[1773409316986,0.002,2182.6,2181.9,6.34915596]
[1773409317902,0.002,2182.6,2182.1,6.34915596]
[1773409318411,0.002,2182.6,2181.5,0.22537765]
[1773409318594,0.002,2182.6,2181.6,7.49510388]
[1773409318775,0.002,2182.6,2181.8,6.34915596]
[1773409318972,0.002,2182.9,2181.8,6.34915596]
[1773409319178,0.002,2182.9,2182.0,6.34915596]
[1773409319406,0.002,2182.9,2182.2,6.34915596]
[1773409320281,0.002,2182.9,2182.3,7.49473631]
[1773409320511,0.002,2182.9,2182.3,8.86873631]
[1773409321793,0.002,2182.9,2182.4,6.34915596]
[1773409322184,0.002,2182.9,2182.4,7.49468375]
[1773409324113,0.002,2183.3,2182.4,7.49468375]
[1773409324312,1.14496124,2183.5,2182.5,6.34915596]
[1773409324313,6.17009984,2183.5,2182.5,6.34915596]
[1773409324825,6.57831623,2183.7,2182.5,6.34915596]
[1773409324826,1.44674269,2183.7,2182.5,6.34915596]
[1773409325407,7.61684253,2183.7,2182.6,6.34915596]
[1773409325722,7.61684253,2183.7,2182.6,7.72515596]
[1773409326098,7.61684253,2183.7,2182.6,1.376]
[1773409326299,6.17009984,2183.5,2182.4,0.23035252]
[1773409326500,6.17009984,2183.2,2182.3,7.72515596]
[1773409327009,6.17009984,2183.2,2182.4,0.04582111]
[1773409327409,6.17009984,2183.5,2182.4,6.39497707]
[1773409327623,1.44674269,2183.7,2182.4,6.39497707]
[1773409327931,7.61684253,2183.7,2182.4,6.34915596]
[1773409328111,1.1450032,2183.4,2182.6,7.49457885]
[1773409328556,4.57975128,2183.6,2182.6,7.49457885]
[1773409329005,4.57975128,2183.6,2182.6,7.49557885]
[1773409329334,0.002,2183.5,2182.6,7.49557885]
[1773409329706,6.17209984,2183.5,2182.6,0.001]
[1773409330231,1.1450032,2183.4,2182.6,0.001]
[1773409331205,1.1450032,2183.4,2182.6,6.35015596]
[1773409331423,1.1450032,2183.4,2182.7,0.04581481]
[1773409331640,1.1450032,2183.4,2182.7,6.39497077]
[1773409331818,1.1450032,2183.4,2182.7,6.34915596]
[1773409332249,4.58201282,2183.5,2182.7,7.54033924]
[1773409333045,0.002,2183.5,2182.7,7.54033924]
[1773409333435,0.30387072,2183.7,2182.8,6.34915596]
[1773409333619,1.44871807,2183.7,2182.8,6.34915596]
[1773409333822,1.44871807,2183.7,2182.9,1.42381061]
[1773409334047,1.44871807,2183.7,2182.9,7.77296657]
[1773409334344,1.44871807,2183.7,2183.1,6.34915596]
[1773409335135,0.30387072,2183.7,2183.1,6.34915596]
[1773409335455,1.14672859,2184.0,2183.1,6.34915596]
[1773409335823,7.31682843,2184.0,2182.9,1.60269207]
[1773409336046,7.64318916,2183.8,2182.6,1.38]
[1773409336461,6.17009984,2183.6,2182.6,1.38]
[1773409336636,6.17009984,2183.5,2182.6,1.38]
[1773409336835,6.17009984,2183.5,2182.6,2.52542033]
[1773409337038,6.17009984,2183.5,2182.6,0.001]
[1773409337350,6.17009984,2183.2,2182.6,0.001]
[1773409338053,6.17009984,2183.6,2182.6,0.001]
[1773409338523,7.3150506,2183.5,2182.6,0.04681691]
[1773409339134,7.3150506,2183.5,2182.6,6.39597287]
[1773409340150,1.14495076,2183.5,2182.6,6.39597287]
[1773409340554,4.57951552,2183.7,2182.8,6.34915596]
[1773409340754,4.57951552,2183.7,2182.9,6.39496657]
[1773409340975,4.57951552,2183.7,2182.9,7.77496657]
[1773409341154,4.57951552,2183.7,2182.9,6.39496657]
[1773409341356,4.57951552,2183.7,2182.9,7.77596657]
[1773409341553,4.57951552,2183.7,2182.9,7.73015596]
[1773409342075,5.8615856,2183.6,2182.6,1.14640565]
[1773409342283,0.002,2183.3,2182.6,0.23315136]
[1773409342573,1.14705564,2183.3,2182.6,0.23315136]
[1773409342801,1.14705564,2183.3,2182.6,1.37857375]
[1773409342950,1.14705564,2183.3,2182.6,0.23315136]
[1773409343848,1.14705564,2183.3,2182.6,0.04681691]
[1773409344482,1.14705564,2183.3,2182.6,0.001]
[1773409344693,7.00864124,2183.3,2182.4,0.001]
[1773409346157,9.19081139,2183.3,2182.4,0.001]
[1773409346360,5.8615856,2183.2,2182.4,0.001]
[1773409346795,1.14516055,2183.1,2182.4,0.001]
[1773409347198,7.00674615,2183.1,2182.4,0.001]
[1773409347712,5.8615856,2182.8,2182.1,0.001]
[1773409347875,3.3273307,2183.1,2182.1,6.32390357]
[1773409348206,3.3273307,2183.1,2181.8,0.33855132]
[1773409348207,5.8615856,2182.8,2181.8,0.33855132]
[1773409348410,5.8615856,2182.7,2181.5,7.51574398]
[1773409348775,7.00700849,2182.6,2181.5,7.51574398]
[1773409348976,5.8615856,2182.5,2181.5,6.36974358]
[1773409349197,5.8615856,2182.5,2181.3,1.14706233]
[1773409349198,5.8615856,2182.2,2181.3,0.001]
[1773409350323,5.8615856,2182.2,2181.3,6.32390357]
[1773409350473,5.8615856,2182.2,2181.3,0.001]
[1773409350675,5.8615856,2182.2,2181.2,0.001]
[1773409350676,5.8615856,2182.0,2181.2,0.001]
[1773409352103,1.14568534,2182.1,2181.2,6.32390357]
[1773409352492,7.00727094,2182.1,2181.2,6.32390357]
[1773409353410,7.00727094,2182.1,2181.2,7.49298797]
[1773409353714,1.14568534,2182.1,2181.2,7.49298797]
[1773409354444,1.14558035,2182.3,2181.2,7.49298797]
[1773409354606,3.87643506,2182.8,2181.2,7.49298797]
[1773409354607,1.14542289,2182.6,2181.4,6.32290357]
[1773409354802,0.05727376,2182.5,2181.6,7.46885149]
[1773409355041,0.05726589,2182.8,2181.8,6.32290357]
[1773409355203,0.05726589,2182.8,2181.9,0.02289465]
[1773409356033,4.58124887,2182.9,2181.9,6.34579822]
[1773409356535,0.05726589,2182.8,2181.9,6.34579822]
[1773409356835,1.14537041,2182.7,2182.1,6.32290357]
[1773409357030,0.05727114,2182.6,2182.1,6.32290357]
[1773409357447,0.05727114,2182.6,2182.0,1.382]
[1773409357819,0.05727114,2182.6,2182.0,7.70490357]
[1773409358910,4.58145554,2182.8,2182.0,8.85058953]
[1773409359130,0.05726852,2182.7,2182.0,7.70490357]
[1773409359416,1.14527986,2182.9,2182.1,6.32290357]
[1773409359626,0.05726589,2182.8,2182.1,6.32290357]
[1773409360336,1.14527986,2182.9,2182.1,6.32290357]
[1773409360551,0.05726327,2182.9,2182.1,6.32290357]
[1773409360730,0.002,2183.5,2182.6,6.32290357]
[1773409360929,0.002,2183.5,2182.9,7.46816904]
[1773409361131,0.0364043,2183.5,2182.9,7.46816904]
[1773409361446,0.002,2183.5,2182.9,7.46816904]
[1773409363333,0.002,2183.7,2183.0,6.32290357]
[1773409364965,0.002,2183.7,2183.2,6.32290357]
[1773409365347,0.002,2183.7,2183.4,6.32290357]
[1773409365545,0.002,2184.0,2183.4,6.32290357]
[1773409366346,5.8615856,2184.7,2183.5,6.38137437]
[1773409366562,1.45711583,2184.5,2183.4,6.38137437]
[1773409367158,1.45711583,2184.5,2183.6,6.38137437]
[1773409367764,6.35013178,2185.3,2183.8,6.38137437]
[1773409367971,1.14395533,2185.4,2183.7,1.1448459]
[1773409367972,6.35013178,2184.8,2183.7,1.1448459]
[1773409368563,0.002,2184.0,2183.7,6.38137437]
[1773409368767,0.002,2184.0,2183.8,1.385]
[1773409369073,0.002,2184.0,2183.9,1.385]
[1773409369286,6.35013178,2184.8,2183.9,1.385]
[1773409369464,6.35013178,2184.8,2184.0,1.385]
[1773409369863,6.35013178,2185.1,2184.0,2.52965368]
[1773409370075,1.14416475,2185.0,2184.0,8.91102805]
[1773409370600,7.49429653,2185.0,2184.0,8.91102805]
[1773409370997,7.49429653,2185.0,2184.0,7.52602805]
[1773409371198,7.49429653,2185.0,2184.1,1.386]
[1773409371494,6.3192196,2184.8,2183.9,1.386]
[1773409371999,7.46354147,2184.7,2184.0,1.386]
[1773409372491,7.46354147,2184.7,2183.7,1.386]
[1773409373160,6.3192196,2184.5,2183.5,1.387]
[1773409373364,1.14432187,2184.7,2183.2,1.47936985]
[1773409373365,6.3192196,2184.2,2183.2,1.47936985]
[1773409373593,1.14432187,2184.7,2183.2,0.09236985]
[1773409373594,6.3192196,2183.9,2183.2,0.09236985]
[1773409373894,1.1448459,2183.7,2182.8,1.14531794]
[1773409374198,1.1448459,2183.7,2182.9,0.04581061]
[1773409374365,7.4640655,2183.7,2182.6,2.53238396]
[1773409375167,1.1448459,2183.7,2182.7,6.29738753]
[1773409375865,1.1448459,2183.7,2182.7,6.25157272]
[1773409376061,1.1448459,2183.7,2182.8,1.14531794]
[1773409376386,1.1448459,2183.7,2182.7,7.39690206]
[1773409376586,1.1448459,2183.7,2182.7,7.39692276]
[1773409376980,1.1448459,2183.7,2182.8,0.04581271]
[1773409377184,1.1448459,2183.7,2182.7,7.39692276]
[1773409377392,1.1448459,2183.7,2182.7,7.39692832]
[1773409377703,6.3192196,2183.6,2182.7,1.1453556]
[1773409377903,6.3192196,2183.6,2182.7,2.5323556]
[1773409378083,1.14495076,2183.5,2182.7,2.5323556]
[1773409378288,1.14495076,2183.5,2182.7,8.78392832]
[1773409378805,1.14495076,2183.5,2182.7,8.78394288]
[1773409379602,1.14495076,2183.5,2182.8,0.04581271]
[1773409379909,1.14495076,2183.5,2182.9,1.388]
[1773409380079,10.89902266,2183.6,2183.0,1.388]
[1773409381978,10.89902266,2183.6,2182.9,0.001]
[1773409382173,10.89902266,2183.6,2182.9,1.389]
[1773409382378,4.57980306,2183.6,2182.9,2.53425829]
[1773409382704,6.11315565,2183.8,2183.0,6.29738124]
[1773409382705,1.14682952,2183.8,2183.0,6.29738124]
[1773409383011,1.14680222,2183.8,2183.0,6.29738124]
[1773409383187,1.14680171,2183.8,2183.0,6.29738124]
[1773409383383,1.14680171,2183.8,2183.0,6.25157272]
[1773409384214,0.002,2184.0,2183.2,6.25157272]
[1773409384414,1.14451282,2184.4,2183.5,6.25157272]